bitfinex-derivatives/quotes_BNBF0:USTF0_20250510
["timestamp","ask_amount","ask_price","bid_price","bid_amount"]
[1746846773081,0.30032284,665.95,664.57,0.30094647]
[1746846773281,0.24214152,665.94,664.57,0.30094647]
[1746846773482,0.30033186,665.93,664.57,0.30094647]
[1746846773681,0.24214152,665.92,664.57,0.30094647]
[1746846773977,0.24214152,665.91,664.57,0.30094647]
[1746846774383,0.24214152,665.9,664.57,0.30094647]
[1746846774683,0.24214152,665.89,664.57,0.30094647]
[1746846775082,0.24214152,665.88,664.57,0.30094647]
[1746846775483,0.24214152,665.87,664.57,0.30094647]
[1746846775778,0.24214152,665.86,664.57,0.30094647]
[1746846776083,1.92529429,665.73,664.57,0.30094647]
[1746846776783,0.24214152,665.72,664.57,0.30094647]
[1746846777083,0.24214152,665.71,664.57,0.30094647]
[1746846777382,0.24214152,665.7,664.57,0.30094647]
[1746846777584,0.24214152,665.7,664.58,0.526]
[1746846777879,0.24214152,665.69,664.58,0.526]
[1746846778084,0.24214152,665.68,664.58,0.526]
[1746846778285,1.92529429,665.59,664.58,0.526]
[1746846778683,0.24214152,665.58,664.58,0.526]
[1746846779684,1.92529429,665.59,664.58,0.526]
[1746846779979,0.24213326,665.58,664.58,0.526]
[1746846780786,0.24213326,665.58,664.58,0.82694194]
[1746846781084,0.24213326,665.89,664.58,0.82694194]
[1746846782286,0.24213326,665.89,664.59,0.30093742]
[1746846782486,0.2616502,665.9,664.59,0.30093742]
[1746846782985,0.24219915,665.89,664.59,0.30093742]
[1746846783486,0.30033186,665.93,664.59,0.30093742]
[1746846783881,0.50380581,665.92,664.59,0.30093742]
[1746846784082,0.2422038,665.91,664.59,0.30093742]
[1746846784790,0.2422038,665.91,664.6,0.5923645]
[1746846785087,0.2422038,665.91,664.61,0.30092836]
[1746846785687,0.2422038,665.91,664.62,0.59247939]
[1746846785887,0.2422038,665.91,664.63,0.89339831]
[1746846786088,0.2422038,665.91,664.65,0.30091025]
[1746846786289,0.2422038,665.91,664.66,0.59247901]
[1746846786486,0.2422038,665.91,664.68,0.30089667]
[1746846786688,0.2422038,665.91,664.69,0.59247901]
[1746846786984,0.26156269,665.9,664.7,0.89336662]
[1746846787183,0.26156269,665.9,664.71,0.8933621]
[1746846787386,0.2422038,665.89,664.72,0.89343613]
[1746846787584,0.2422038,665.89,664.73,0.8934316]
[1746846787785,0.2422038,665.89,664.74,0.30086951]
[1746846789490,0.2422038,665.88,664.74,0.30086951]
[1746846789791,0.26161774,665.88,664.74,0.30086951]
[1746846790192,0.24232738,665.87,664.74,0.30086951]
[1746846791188,0.26161774,665.88,664.74,0.30086951]
[1746846791791,0.24233054,665.87,664.74,0.30086951]
[1746846792892,0.26161578,665.86,664.74,0.30086951]
[1746846793194,0.24233054,665.85,664.74,0.30086951]
[1746846794093,0.24233054,665.84,664.74,0.30086951]
[1746846794393,0.24233054,665.83,664.74,0.30086951]
[1746846794689,0.24233054,665.82,664.74,0.30086951]
[1746846795092,0.24233054,665.81,664.74,0.30086951]
[1746846795489,0.24233054,665.8,664.74,0.30086951]
[1746846795988,0.24233054,665.79,664.74,0.30086951]
[1746846796293,0.24233054,665.78,664.74,0.30086951]
[1746846796592,0.24233054,665.77,664.74,0.30086951]
[1746846796994,0.24233054,665.76,664.74,0.30086951]
[1746846797196,0.24233054,665.75,664.74,0.30086951]
[1746846797595,0.24233054,665.74,664.74,0.30086951]
[1746846798098,0.24233054,665.73,664.74,0.30086951]
[1746846798896,0.26161578,665.72,664.74,0.30086951]
[1746846799096,0.50394632,665.72,664.74,0.30086951]
[1746846799594,0.24233054,665.71,664.74,0.30086951]
[1746846804098,0.24233054,665.7,664.74,0.30086951]
[1746846804500,0.24233054,665.69,664.74,0.30086951]
[1746846805301,0.24233054,665.68,664.74,0.30086951]
[1746846805701,0.24233054,665.67,664.74,0.30086951]
[1746846805903,0.26161578,665.72,664.74,0.30086951]
[1746846806303,0.24218816,665.71,664.74,0.30086951]
[1746846806604,0.26161578,665.72,664.74,0.30086951]
[1746846807001,0.24217784,665.71,664.74,0.30086951]
[1746846807304,0.24217784,665.7,664.74,0.30086951]
[1746846807804,0.24217784,665.69,664.74,0.30086951]
[1746846808304,0.24217784,665.68,664.74,0.30086951]
[1746846808505,0.24217784,665.67,664.74,0.30086951]
[1746846808805,0.50383788,665.67,664.74,0.30086951]
[1746846809005,0.24217784,665.66,664.74,0.30086951]
[1746846809306,0.24217784,665.65,664.74,0.30086951]
[1746846809701,0.24217784,665.64,664.74,0.30086951]
[1746846809901,0.24217784,665.63,664.74,0.30086951]
[1746846810307,0.24217784,665.62,664.74,0.30086951]
[1746846810707,0.24217784,665.66,664.74,0.30086951]
[1746846813704,0.24217784,665.92,664.74,0.30086951]
[1746846813905,0.26161774,665.65,664.74,0.30086951]
[1746846814106,0.24217784,665.91,664.74,0.30086951]
[1746846814609,0.24217784,665.9,664.74,0.30086951]
[1746846814811,0.24217784,665.89,664.74,0.30086951]
[1746846815108,0.24217784,665.88,664.74,0.30086951]
[1746846815405,0.24217784,665.87,664.74,0.30086951]
[1746846815805,0.24217784,665.86,664.74,0.30086951]
[1746846816111,0.24217784,665.85,664.74,0.30086951]
[1746846816913,0.24217784,665.84,664.74,0.30086951]
[1746846817107,0.50379558,665.84,664.74,0.30086951]
[1746846817315,0.24217784,665.83,664.74,0.30086951]
[1746846817812,0.24217784,665.83,664.75,0.399]
[1746846819914,0.26159906,665.82,664.75,0.399]
[1746846820514,0.24217784,665.81,664.75,0.399]
[1746846822814,0.26159906,665.8,664.75,0.399]
[1746846823309,0.26159906,665.8,664.76,0.335]
[1746846823513,0.24217784,665.79,664.76,0.335]
[1746846826219,0.26159906,665.8,664.76,0.335]
[1746846827020,0.24255467,665.79,664.76,0.335]
[1746846828319,0.26159906,665.8,664.76,0.335]
[1746846828518,0.30033186,665.93,664.76,0.335]
[1746846828915,0.50399264,665.92,664.76,0.335]
[1746846829419,0.24250562,665.91,664.76,0.335]
[1746846831914,0.26155089,665.9,664.76,0.335]
[1746846832320,0.24250562,665.89,664.76,0.335]
[1746846834925,0.26155089,665.88,664.76,0.335]
[1746846835325,0.24250562,665.87,664.76,0.335]
[1746846837822,0.24250562,665.92,664.76,0.335]
[1746846838828,0.26155089,665.91,664.76,0.335]
[1746846839527,0.24250562,665.9,664.76,0.335]
[1746846841027,0.24250562,665.92,664.76,0.335]
[1746846842029,0.2615332,665.91,664.76,0.335]
[1746846842331,0.24250562,665.9,664.76,0.335]
[1746846843828,0.2615332,665.89,664.76,0.335]
[1746846844333,0.24250562,665.88,664.76,0.335]
[1746846846934,0.26153418,665.87,664.76,0.335]
[1746846847533,0.24250562,665.86,664.76,0.335]
[1746846848032,0.24250562,665.86,664.77,0.379]
[1746846849735,0.24250562,665.92,664.77,0.379]
[1746846850230,0.26155581,665.85,664.77,0.379]
[1746846850835,0.24250562,665.84,664.77,0.379]
[1746846852837,0.24250562,665.92,664.77,0.379]
[1746846853136,0.26157055,665.83,664.77,0.379]
[1746846853335,0.24250562,665.92,664.77,0.379]
[1746846853936,0.26159906,665.91,664.77,0.379]
[1746846854336,0.24250562,665.9,664.77,0.379]
[1746846855837,0.2616266,665.89,664.77,0.379]
[1746846856337,0.24250562,665.88,664.77,0.379]
[1746846856839,0.24250562,665.87,664.77,0.379]
[1746846857035,0.2616266,665.89,664.77,0.379]
[1746846858536,0.54595314,673.3,664.77,0.379]
[1746846858838,0.50329347,665.88,664.77,0.379]
[1746846859137,0.24237794,665.87,664.77,0.379]
[1746846859938,0.26091553,665.86,664.77,0.379]
[1746846860235,0.50329347,665.86,664.77,0.379]
[1746846860435,0.24237794,665.85,664.77,0.379]
[1746846860734,0.24237794,665.84,664.77,0.379]
[1746846861036,0.24237794,665.83,664.77,0.379]
[1746846861337,0.24237794,665.82,664.77,0.379]
[1746846861836,0.50334923,665.81,664.77,0.379]
[1746846862137,0.24237794,665.8,664.77,0.379]
[1746846862539,0.24237794,665.8,664.78,0.434]
[1746846864938,0.26091259,665.79,664.78,0.434]
[1746846865441,0.24237794,665.78,664.78,0.434]
[1746846866537,0.24237794,665.77,664.78,0.434]
[1746846867742,0.26091259,665.76,664.78,0.434]
[1746846867941,0.50329053,665.76,664.78,0.434]
[1746846868844,0.24237794,665.75,664.78,0.434]
[1746846869043,0.24237794,665.74,664.78,0.434]
[1746846869343,0.24237794,665.73,664.78,0.434]
[1746846869547,0.24237794,665.72,664.78,0.434]
[1746846869745,0.24237794,665.71,664.78,0.434]
[1746846869949,0.24237794,665.7,664.78,0.434]
[1746846870246,0.24237794,665.69,664.78,0.434]
[1746846870549,0.24237794,665.75,664.78,0.434]
[1746846870850,0.24237794,665.74,664.78,0.434]
[1746846871049,0.26091259,665.68,664.78,0.434]
[1746846871447,0.24237794,665.67,664.78,0.434]
[1746846872344,0.24237794,665.66,664.78,0.434]
[1746846872650,0.24237794,665.65,664.78,0.434]
[1746846872948,0.24237794,665.64,664.78,0.434]
[1746846873152,0.24237794,665.63,664.78,0.434]
[1746846873351,0.24237794,665.62,664.78,0.434]
[1746846873550,0.24237794,665.61,664.78,0.434]
[1746846873751,0.24237794,665.6,664.78,0.434]
[1746846873953,0.26091259,665.68,664.78,0.434]
[1746846874148,0.24232007,665.67,664.78,0.434]
[1746846874349,0.24232007,665.66,664.78,0.434]
[1746846874650,0.24232007,665.65,664.78,0.434]
[1746846874949,0.24232007,665.64,664.78,0.434]
[1746846875153,0.24232007,665.63,664.78,0.434]
[1746846875350,0.24232007,665.62,664.78,0.434]
[1746846875553,0.24232007,665.61,664.78,0.434]
[1746846875850,0.24232007,665.6,664.78,0.434]
[1746846876149,0.24232007,665.59,664.78,0.434]
[1746846876353,0.24232007,665.58,664.78,0.434]
[1746846876648,0.24232007,665.57,664.78,0.434]
[1746846877053,0.2609938,665.57,664.78,0.434]
[1746846877352,0.24236664,665.56,664.78,0.434]
[1746846877547,0.24236664,665.55,664.78,0.434]
[1746846877752,0.24236664,665.56,664.78,0.434]
[1746846879549,0.24236664,665.55,664.78,0.434]
[1746846879853,0.24236664,665.54,664.78,0.434]
[1746846880250,0.24236664,665.53,664.78,0.434]
[1746846880653,0.24236664,665.54,664.78,0.434]
[1746846880855,0.24236664,665.52,664.78,0.434]
[1746846881057,0.26189338,665.52,664.79,0.496]
[1746846881256,0.24236664,665.51,664.79,0.496]
[1746846882153,0.26189338,665.52,664.79,0.496]
[1746846882355,0.24240818,665.51,664.79,0.496]
[1746846885661,0.24240818,665.91,664.79,0.496]
[1746846885959,0.26178897,665.5,664.79,0.496]
[1746846886162,0.24240818,665.49,664.79,0.496]
[1746846886360,0.24240818,665.88,664.79,0.496]
[1746846886958,0.26166692,665.87,664.8,0.488]
[1746846887362,0.24240818,665.86,664.8,0.488]
[1746846888462,0.30036795,665.85,664.8,0.488]
[1746846888664,0.24240818,665.84,664.8,0.488]
[1746846888965,0.30037697,665.83,664.8,0.488]
[1746846889360,0.24244133,665.82,664.8,0.488]
[1746846889566,0.54282281,665.82,664.8,0.488]
[1746846889865,0.24244133,665.81,664.8,0.488]
[1746846892065,0.30038148,665.82,664.8,0.488]
[1746846892066,0.50406006,665.8,664.8,0.488]
[1746846892268,0.24244133,665.79,664.8,0.488]
[1746846892567,0.24244133,665.78,664.8,0.488]
[1746846892764,0.24244133,665.77,664.8,0.488]
[1746846892969,2.43761642,665.76,664.8,0.488]
[1746846893169,0.30041758,665.74,664.8,0.488]
[1746846893368,0.24244133,665.73,664.8,0.488]
[1746846893565,0.30043111,665.71,664.8,0.488]
[1746846893769,0.24244133,665.7,664.8,0.488]
[1746846893970,0.30044465,665.68,664.8,0.488]
[1746846894169,0.24244133,665.67,664.8,0.488]
[1746846894364,0.30045819,665.65,664.8,0.488]
[1746846894671,0.24244133,665.64,664.8,0.488]
[1746846894967,0.54290855,665.63,664.8,0.488]
[1746846895170,0.54291307,665.62,664.8,0.488]
[1746846895375,1.89476654,665.44,664.8,0.488]
[1746846895671,0.24244133,665.43,664.8,0.488]
[1746846895970,1.89476654,665.44,664.8,0.488]
[1746846896165,0.24233516,665.43,664.8,0.488]
[1746846896365,0.24233516,665.42,664.8,0.488]
[1746846896565,0.24233516,665.41,664.8,0.488]
[1746846896767,0.24233516,665.4,664.8,0.488]
[1746846896967,0.24233516,665.39,664.8,0.488]
[1746846897171,0.24233516,665.38,664.8,0.488]
[1746846897372,0.54291979,665.37,664.8,0.488]
[1746846897569,0.30058915,665.36,664.8,0.488]
[1746846897874,0.24217126,665.35,664.8,0.488]
[1746846898073,0.54276945,665.34,664.8,0.11927781]
[1746846898375,0.54277396,665.33,664.79,0.496]
[1746846898575,0.30060722,665.32,664.79,0.496]
[1746846898777,0.24217126,665.31,664.79,0.496]
[1746846898971,0.30061626,665.3,664.79,0.496]
[1746846899175,0.24217126,665.29,664.79,0.496]
[1746846899370,0.3006253,665.28,664.79,0.496]
[1746846899573,0.24217126,665.27,664.79,0.496]
[1746846899777,0.30063433,665.26,664.79,0.496]
[1746846899977,0.24217126,665.25,664.79,0.496]
[1746846900178,0.30064337,665.24,664.79,0.496]
[1746846900479,0.24217126,665.23,664.79,0.496]
[1746846900673,0.30065241,665.22,664.79,0.496]
[1746846900974,0.24217126,665.21,664.79,0.496]
[1746846904484,0.2618855,665.2,664.79,0.496]
[1746846904680,0.24217126,665.19,664.79,0.496]
[1746846904979,0.24217126,665.19,663.63,0.2618855]
[1746846905186,0.24217126,665.19,663.65,0.30136367]
[1746846905581,0.24217126,665.19,663.66,1.54636124]
[1746846905785,0.24217126,665.19,663.67,1.54636124]
[1746846905986,0.24217126,665.19,663.68,1.54636124]
[1746846906182,0.24217126,665.19,663.69,1.54636124]
[1746846906386,0.24217126,665.19,663.7,1.54636124]
[1746846906582,0.24217126,665.19,663.71,1.54636124]
[1746846906787,0.24217126,665.21,663.72,1.54636124]
[1746846906984,0.26187663,665.18,663.73,1.54636124]
[1746846907288,0.26187663,665.18,663.74,1.54636124]
[1746846907482,0.24232628,665.17,663.75,1.54636124]
[1746846907687,0.24232628,665.17,663.76,1.54635049]
[1746846907886,0.24232628,665.17,663.77,1.54635049]
[1746846908183,0.24232628,665.17,663.78,1.54635049]
[1746846908486,0.24232628,665.17,663.79,1.54635049]
[1746846908681,0.24232628,665.17,663.8,1.54635049]
[1746846908881,0.24232628,665.17,663.81,1.54635049]
[1746846909085,0.24232628,665.17,663.82,1.54635049]
[1746846909283,0.24232628,665.17,663.83,1.54635049]
[1746846909483,0.24232628,665.17,663.84,1.54635049]
[1746846909688,0.30065241,665.22,663.85,1.54635049]
[1746846909887,0.26184609,665.16,663.86,1.54635049]
[1746846910090,0.24234746,665.15,663.87,1.54635049]
[1746846910388,0.24234746,665.15,663.88,1.54635049]
[1746846910589,0.24234746,665.15,663.89,1.54635049]
[1746846910789,0.26184609,665.16,663.9,1.54635049]
[1746846911089,0.24234273,665.15,663.92,0.30124111]
[1746846911289,0.24234273,665.15,663.93,1.54635049]
[1746846911483,0.24234273,665.15,663.94,1.54635049]
[1746846911788,0.24234273,665.15,663.95,1.54725243]
[1746846911985,0.24234273,665.15,663.97,0.30121842]
[1746846912290,0.24234273,665.15,663.98,0.59192068]
[1746846912589,0.24234273,665.15,663.99,0.89313003]
[1746846912783,0.24234273,665.15,664.0,0.89312549]
[1746846912983,0.26181654,665.14,664.01,0.89312096]
[1746846913191,0.50415927,665.14,664.02,0.59192068]
[1746846913489,0.24234273,665.13,664.03,0.59192068]
[1746846913689,0.24234273,665.21,664.04,0.59192068]
[1746846913890,0.2618126,665.13,664.05,0.59192068]
[1746846914090,0.2618126,665.13,664.06,0.59192068]
[1746846914291,0.24234273,665.12,664.07,0.89309374]
[1746846914484,0.50415139,665.12,664.07,0.30117306]
[1746846914689,0.24234273,665.11,664.07,0.30117306]
[1746846915290,0.24234273,665.11,664.08,0.59273965]
[1746846915490,0.24234273,665.11,664.09,0.30116399]
[1746846915885,0.26180768,665.1,664.09,0.30116399]
[1746846916089,0.50420439,665.1,664.09,0.30116399]
[1746846916291,0.24239671,665.09,664.09,0.30116399]
[1746846918794,0.30065241,665.22,664.09,0.30116399]
[1746846918987,0.24248057,665.21,664.09,0.30116399]
[1746846919994,0.26190718,665.2,664.09,0.30116399]
[1746846920196,0.24248057,665.19,664.09,0.30116399]
[1746846921794,0.26189437,665.18,664.09,0.30116399]
[1746846921994,0.24248057,665.17,664.09,0.30116399]
[1746846922194,0.24248057,665.17,664.1,0.457]
[1746846924498,0.26189437,665.18,664.1,0.457]
[1746846924693,0.30065241,665.22,664.1,0.457]
[1746846924892,0.26186875,665.17,664.1,0.457]
[1746846925398,0.24305724,665.16,664.1,0.457]
[1746846926294,0.24305724,665.15,664.1,0.457]
[1746846926595,0.24305724,665.14,664.1,0.457]
[1746846927097,0.24305724,665.13,664.1,0.457]
[1746846927696,0.24305724,665.12,664.1,0.457]
[1746846927892,0.50492599,665.12,664.1,0.457]
[1746846928098,0.24305724,665.11,664.1,0.457]
[1746846928600,0.24305724,665.1,664.1,0.457]
[1746846928902,0.24305724,665.09,664.1,0.457]
[1746846929202,0.26186875,665.12,664.1,0.457]
[1746846929497,0.24305293,665.08,664.1,0.457]
[1746846930003,0.24305293,665.07,664.1,0.457]
[1746846930298,0.24305293,665.06,664.1,0.457]
[1746846930798,0.24305293,665.05,664.1,0.457]
[1746846930998,0.50492168,665.05,664.1,0.457]
[1746846931502,0.24305293,665.04,664.1,0.457]
[1746846932002,0.24305293,665.03,664.1,0.457]
[1746846932298,0.24305293,665.02,664.1,0.457]
[1746846932798,0.24305293,665.01,664.1,0.457]
[1746846933102,0.24305293,665.0,664.1,0.457]
[1746846933702,0.24305293,665.04,664.1,0.457]
[1746846934003,0.24305293,664.99,664.1,0.457]
[1746846934204,0.26186875,665.05,664.1,0.457]
[1746846934205,0.24305293,665.03,664.1,0.457]
[1746846934604,0.24305293,664.98,664.1,0.457]
[1746846934804,0.24305293,665.04,664.1,0.457]
[1746846939809,0.24305293,665.21,664.1,0.457]
[1746846940410,0.24305293,665.21,664.11,0.30115492]
[1746846940907,0.26180472,665.2,664.11,0.30115492]
[1746846941712,0.24305293,665.19,664.11,0.30115492]
[1746846942807,0.24305293,665.21,664.11,0.30115492]
[1746846943012,0.26180472,665.18,664.11,0.30115492]
[1746846943414,0.24305293,665.17,664.11,0.30115492]
[1746846943814,0.24305293,665.17,664.12,0.59220039]
[1746846944007,0.24305293,665.17,664.13,0.59220039]
[1746846944213,0.24305293,665.17,664.14,0.59220039]
[1746846944412,0.24305293,665.17,664.15,1.54843449]
[1746846944614,0.24305293,665.17,664.16,1.54843449]
[1746846944809,0.24305293,665.17,664.17,1.54843449]
[1746846945008,0.24305293,665.17,664.18,1.54843449]
[1746846945215,0.24305293,665.17,664.19,1.54843449]
[1746846945409,0.24305293,665.17,664.2,1.54843449]
[1746846945713,0.24305293,665.17,664.21,1.54843449]
[1746846946013,0.24305293,665.17,664.22,1.54843449]
[1746846946210,0.2616807,665.23,664.23,1.54843449]
[1746846946413,0.24305293,665.16,664.24,1.54843449]
[1746846946610,0.24305293,665.16,664.25,1.54843449]
[1746846946810,0.24305293,665.22,664.26,1.54843449]
[1746846947010,0.24305293,665.15,664.27,1.54843449]
[1746846947316,0.24305293,665.21,664.28,0.89920039]
[1746846947615,0.24305293,665.14,664.29,0.89327371]
[1746846947816,0.24305293,665.2,664.3,0.89326918]
[1746846948116,0.24305293,665.22,664.31,0.59220039]
[1746846948316,0.24305293,665.22,664.32,0.59220039]
[1746846948519,0.24305293,665.22,664.33,0.89325558]
[1746846948713,0.24305293,665.22,664.34,0.89325105]
[1746846948913,0.24305293,665.22,664.34,0.30105066]
[1746846949613,0.26162561,665.23,664.34,0.30105066]
[1746846949817,0.24305293,665.22,664.34,0.30105066]
[1746846951915,0.26164725,665.21,664.34,0.30105066]
[1746846952517,0.24328464,665.2,664.34,0.30105066]
[1746846954718,0.24328464,666.32,664.34,0.30105066]
[1746846954918,0.30016509,666.3,664.34,0.30105066]
[1746846955315,1.89476654,666.15,664.34,0.30105066]
[1746846955517,0.30024169,666.13,664.34,0.30105066]
[1746846955719,0.24328464,666.12,664.34,0.30105066]
[1746846956117,0.24328464,666.11,664.34,0.30105066]
[1746846956420,0.24328464,666.1,664.34,0.30105066]
[1746846956720,0.30024169,666.13,664.34,0.30105066]
[1746846957019,0.24321097,666.12,664.34,0.30105066]
[1746846957417,0.24321097,666.11,664.34,0.30105066]
[1746846957621,1.89476654,665.95,664.34,0.30105066]
[1746846958122,0.24321097,665.94,664.34,0.30105066]
[1746846958329,0.24321097,665.93,664.34,0.30105066]
[1746846958625,0.24321097,665.92,664.34,0.30105066]
[1746846958821,0.24321097,665.91,664.34,0.30105066]
[1746846959126,0.24321097,665.9,664.34,0.30105066]
[1746846959628,0.24321097,665.89,664.34,0.30105066]
[1746846959928,0.24321097,665.88,664.34,0.30105066]
[1746846960227,0.24321097,665.87,664.34,0.30105066]
[1746846960429,1.89476654,665.95,664.34,0.30105066]
[1746846960729,0.26166987,665.86,664.35,0.59202054]
[1746846960930,0.26166987,665.86,664.36,0.59199653]
[1746846961130,0.24315388,665.94,664.34,0.30105066]
[1746846961326,0.24315388,665.93,664.34,0.30105066]
[1746846961926,0.50481588,665.92,664.34,0.30105066]
[1746846962532,0.24315388,665.91,664.34,0.30105066]
[1746846962727,0.24315388,665.9,664.34,0.30105066]
[1746846963231,0.24315388,665.89,664.34,0.30105066]
[1746846963432,0.261662,665.92,664.34,0.30105066]
[1746846963627,0.30024169,666.13,664.34,0.30105066]
[1746846964131,0.50481368,665.91,664.34,0.30105066]
[1746846964327,0.24315168,665.91,664.34,0.30105066]
[1746846964527,0.24315168,665.9,664.34,0.30105066]
[1746846964731,0.24315168,665.89,664.34,0.30105066]
[1746846965232,0.24315168,665.88,664.34,0.30105066]
[1746846965431,0.24315168,665.88,664.35,0.59178093]
[1746846965629,0.24315168,665.88,664.36,1.54674271]
[1746846965828,0.24315168,665.88,664.37,0.59157887]
[1746846966028,0.24315168,666.12,664.38,1.54625071]
[1746846966234,0.24315168,666.12,664.39,1.54625071]
[1746846966435,0.24315168,666.23,664.4,1.54625071]
[1746846966731,0.24315168,666.23,664.41,1.54625071]
[1746846966934,0.26150962,666.22,664.42,1.54625071]
[1746846967134,0.26150962,666.22,664.43,1.54625071]
[1746846967434,0.24315168,666.21,664.44,1.54625071]
[1746846967636,0.24315168,666.21,664.45,1.54418164]
[1746846967836,0.24315168,666.21,664.47,0.30099176]
[1746846968033,0.24315168,666.21,664.48,1.54418164]
[1746846968233,0.24315168,666.21,664.5,0.30097817]
[1746846968533,0.24315168,666.21,664.51,1.54418164]
[1746846968732,0.24315168,666.21,664.53,0.30096459]
[1746846968936,0.24315168,666.21,664.54,1.54418164]
[1746846969136,0.24315168,666.21,664.56,0.300951]
[1746846969339,0.26150962,666.22,664.57,1.54418164]
[1746846969536,0.24322735,666.21,664.59,0.30093742]
[1746846969741,0.24322735,666.21,664.6,1.54227981]
[1746846969937,0.26142809,666.2,664.61,1.54227981]
[1746846970137,0.26142809,666.2,664.62,1.54227981]
[1746846970342,0.26142809,666.2,664.59,0.30093742]
[1746846970343,0.24322735,666.19,664.63,1.54227981]
[1746846970537,0.24322735,666.19,664.64,1.54227981]
[1746846970737,0.24322735,666.19,664.65,1.54227981]
[1746846971042,0.24322735,666.19,664.66,1.54227981]
[1746846971241,0.24322735,666.19,664.67,1.54227981]
[1746846971439,0.24322735,666.19,664.69,0.30089214]
[1746846971640,0.24322735,666.19,664.7,1.54227981]
[1746846971842,0.24322735,666.19,664.72,0.30087856]
[1746846972037,0.24322735,666.19,664.73,1.54227981]
[1746846972337,0.24322735,666.19,664.75,0.30086498]
[1746846972641,0.24322735,666.19,664.76,1.54227981]
[1746846972840,0.24322735,666.19,664.77,1.54227981]
[1746846973041,0.24322735,667.3,664.78,0.95070094]
[1746846973244,0.29976917,667.18,664.79,0.95070094]
[1746846973443,0.29976917,667.18,664.8,1.25154329]
[1746846973643,0.29976917,667.18,664.82,0.3008333]
[1746846973842,0.24322735,667.17,664.82,0.3008333]
[1746846974044,0.2998231,667.06,664.82,0.3008333]
[1746846974442,0.24322735,667.05,664.82,0.3008333]
[1746846974643,0.29987705,666.94,664.82,0.3008333]
[1746846975240,0.24322735,666.93,664.82,0.3008333]
[1746846975445,0.29992651,666.83,664.82,0.3008333]
[1746846975845,0.24322735,666.82,664.82,0.3008333]
[1746846976046,0.50462107,666.82,664.82,0.3008333]
[1746846976343,0.24322735,666.81,664.82,0.3008333]
[1746846976648,0.29994451,666.79,664.83,0.329]
[1746846977043,0.24322735,666.78,664.85,0.30081973]
[1746846977244,0.299958,666.76,664.85,0.30081973]
[1746846977945,0.24322735,666.75,664.86,0.94506116]
[1746846978143,0.2999715,666.73,664.88,0.30080616]
[1746846978542,0.24322735,666.72,664.88,0.30080616]
[1746846979143,0.2999715,666.73,664.88,0.30080616]
[1746846979446,0.26139372,666.82,664.88,0.30080616]
[1746846979447,0.299985,666.7,664.88,0.30080616]
[1746846979847,0.24296629,666.69,664.88,0.30080616]
[1746846980149,0.2999985,666.67,664.88,0.30080616]
[1746846980750,0.24296629,666.66,664.88,0.30080616]
[1746846981048,0.300012,666.64,664.88,0.30080616]
[1746846981253,0.300012,666.64,664.89,0.94398643]
[1746846981453,0.300012,666.64,664.83,0.329]
[1746846981454,0.24296629,666.63,664.9,0.30079711]
[1746846981654,0.3000255,666.61,664.9,0.30079711]
[1746846982053,0.24296629,666.6,664.9,0.30079711]
[1746846983555,0.24296629,666.59,664.9,0.30079711]
[1746846984150,0.24296629,666.58,664.9,0.30079711]
[1746846984453,0.24296629,666.57,664.9,0.30079711]
[1746846984754,0.24296629,666.56,664.9,0.30079711]
[1746846985155,0.24296629,666.55,664.9,0.30079711]
[1746846985450,0.24296629,666.54,664.9,0.30079711]
[1746846985751,0.24296629,666.53,664.9,0.30079711]
[1746846986155,0.24296629,666.52,664.9,0.30079711]
[1746846986452,0.24296629,666.51,664.9,0.30079711]
[1746846986757,0.50442482,666.5,664.9,0.30079711]
[1746846987157,0.24296629,666.49,664.9,0.30079711]
[1746846987357,0.26145853,666.5,664.9,0.30079711]
[1746846987358,0.24296629,666.48,664.9,0.30079711]
[1746846987556,0.30009302,666.46,664.9,0.30079711]
[1746846987958,0.26145853,666.45,664.9,0.30079711]
[1746846988254,0.50442482,666.45,664.9,0.30079711]
[1746846988458,0.24296629,666.44,664.9,0.30079711]
[1746846988858,0.30011104,666.42,664.9,0.30079711]
[1746846989158,0.24296629,666.41,664.9,0.30079711]
[1746846989360,0.24296629,666.41,664.91,0.293]
[1746846990259,0.30012455,666.39,664.91,0.293]
[1746846990760,0.24296629,666.38,664.91,0.293]
[1746846990963,0.30013806,666.36,664.91,0.293]
[1746846991261,0.24296629,666.35,664.91,0.293]
[1746846992763,0.30014707,666.34,664.91,0.293]
[1746846993158,0.24296629,666.33,664.91,0.293]
[1746846993764,0.30015608,666.32,664.91,0.293]
[1746846994064,0.24296629,666.31,664.91,0.293]